fUSD/lending_fUSD_20240822
["ID","MTS","AMOUNT","RATE_DAILY","PERIOD"]
[335523281,1724304639315,-500.0,0.00010684,2]
[335523282,1724304639324,-500.0,0.00010684,2]
[335523283,1724304639334,-500.0,0.00010684,2]
[335523284,1724304639343,-500.0,0.00010684,2]
[335523285,1724304639352,-500.0,0.00010684,2]
[335523286,1724304639361,-500.0,0.00010684,2]
[335523287,1724304639370,-500.0,0.00010684,2]
[335523288,1724304639379,-500.0,0.00010684,2]
[335523289,1724304639389,-500.0,0.00010684,2]
[335523290,1724304639398,-437.07014466,0.00010684,2]
[335523291,1724304639407,-500.0,0.00010684,2]
[335523292,1724304639416,-500.0,0.00010684,2]
[335523293,1724304639426,-500.0,0.00010684,2]
[335523294,1724304639435,-500.0,0.00010684,2]
[335523295,1724304639444,-500.0,0.00010684,2]
[335523296,1724304639454,-500.0,0.00010684,2]
[335523297,1724304639465,-500.0,0.00010684,2]
[335523298,1724304639474,-184.24658672,0.00010684,2]
[335523299,1724304639483,-500.0,0.00010684,2]
[335523300,1724304639493,-500.0,0.00010684,2]
[335523301,1724304639502,-500.0,0.00010684,2]
[335523302,1724304639511,-500.0,0.00010684,2]
[335523303,1724304639522,-500.0,0.00010684,2]
[335523304,1724304639531,-500.0,0.00010684,2]
[335523305,1724304639540,-500.0,0.00010684,2]
[335523306,1724304639549,-516.3860245,0.00010684,2]
[335523307,1724304639558,-500.0,0.00010684,2]
[335523308,1724304639567,-500.0,0.00010684,2]
[335523309,1724304639576,-522.95742052,0.00010684,2]
[335523310,1724304639585,-500.0,0.00010684,2]
[335523311,1724304639594,-500.0,0.00010684,2]
[335523312,1724304639603,-500.0,0.00010684,2]
[335523313,1724304639613,-7558.1787876,0.00010684,2]
[335523314,1724304639622,-1343.2610154,0.00010699,2]
[335523315,1724304639631,-3405.55078638,0.00010699,2]
[335523316,1724304639640,-306.31409132,0.00010707,2]
[335523317,1724304639649,-1500.0,0.00010713,2]
[335523318,1724304639659,-193.30323054,0.00010713,2]
[335523319,1724304639668,-150.0,0.00010717,2]
[335523320,1724304639677,-150.0,0.00010744,2]
[335523321,1724304639686,-151.33047118,0.00010746,2]
[335523322,1724304639695,-306.31409132,0.00010755,2]
[335523323,1724304639705,-150.0,0.00010761,2]
[335523324,1724304639715,-200.0,0.00010773,2]
[335523325,1724304639724,-150.0,0.00010774,2]
[335523326,1724304639733,-150.0,0.00010774,2]
[335523327,1724304639742,-150.0,0.00010781,2]
[335523328,1724304639751,-152.31,0.0001079,2]
[335523329,1724304639760,-150.0,0.00010793,2]
[335523330,1724304639769,-163.34208766,0.00010797,2]
[335523331,1724304639779,-197701.85952861,0.000108,2]
[335523332,1724304639792,-397.92960355,0.000108,2]
[335523333,1724304639803,-9059.29733584,0.000108,2]
[335523334,1724304639835,-13552.17793519,0.000108,2]
[335523335,1724304639847,-290.08119832,0.000108,2]
[335523336,1724304639862,-2977.32631438,0.000108,2]
[335523337,1724304639873,-531.6784126,0.000108,2]
[335523338,1724304640007,-1400.23603358,0.000108,2]
[335523339,1724304640019,-19099.21,0.000108,2]
[335523340,1724304640030,-6057.23386798,0.000108,2]
[335523341,1724304640042,-16071.45571123,0.000108,2]
[335523342,1724304640053,-27604.04831325,0.000108,2]
[335523343,1724304640064,-22243.24876,0.000108,2]
[335523344,1724304640079,-463.4202856,0.000108,2]
[335523346,1724304640092,-458.30005236,0.000108,2]
[335523348,1724304640104,-4462.02146387,0.000108,2]
[335523350,1724304640116,-1185.14145906,0.000108,2]
[335523352,1724304640338,-14548.19792174,0.000108,2]
[335523353,1724304640456,-760.74789201,0.000108,2]
[335523354,1724304640577,-259529.32194052,0.000108,2]
[335523355,1724304640587,-306.31409132,0.00010804,2]
[335523356,1724304640597,-150.0,0.00010807,2]
[335523357,1724304640606,-779.63,0.00010808,2]
[335523358,1724304640615,-150.0,0.00010811,2]
[335523359,1724304640624,-150.0,0.00010822,2]
[335523360,1724304640633,-150.0,0.00010829,2]
[335523362,1724304640643,-1696.65658371,0.00010835,2]
[335523364,1724304640654,-150.0,0.00010848,2]
[335523366,1724304640664,-373.165,0.00010861,2]
[335523368,1724304640673,-909.1608383,0.00010861,2]
[335523370,1724304640682,-601.86371233,0.00010862,2]
[335523372,1724304640692,-155.0,0.00010862,2]
[335523374,1724304640701,-206.7206509,0.00010862,2]
[335523376,1724304640710,-527.24751742,0.00010862,2]
[335523378,1724304640720,-150.0,0.0001087,2]
[335523380,1724304640729,-500.0,0.00010873,2]
[335523383,1724304640739,-500.0,0.00010873,2]
[335523386,1724304640747,-24553.83362281,0.0001088,2]
[335523388,1724304640759,-3698.49104601,0.0001088,2]
[335523390,1724304640770,-256.62236691,0.0001088,2]
[335523454,1724304643226,-348.46968061,0.00010505,2]
[335523455,1724304643236,-306.31409132,0.00010852,2]
[335523456,1724304643245,-909.1608383,0.00010861,2]
[335523457,1724304643254,-1477.00538977,0.0001088,2]
[335523458,1724304643288,-44786.61043031,0.0001088,2]
[335523460,1724304643668,-3425.09560134,0.0001088,2]
[335523464,1724304646181,-17612.52095072,0.0001088,2]
[335523465,1724304646192,-1750.24114476,0.0001088,2]
[335523466,1724304646243,-682.87589444,0.0001088,2]
[335523467,1724304646562,-121770.89358783,0.0001088,2]
[335523468,1724304646577,-316.01403212,0.0001088,2]
[335523469,1724304661700,171.98,7.959e-05,2]
[335523470,1724304678574,791.78919114,9.899e-05,2]
[335523471,1724304689504,206.7206509,9.647e-05,2]
[335523473,1724304714829,500.0,8.964e-05,2]
[335523474,1724304715276,500.0,8.964e-05,2]
[335523475,1724304716237,348.38853261,9.647e-05,2]
[335523476,1724304727062,790.95883338,9.647e-05,2]
[335523477,1724304733153,500.0,8.22e-05,2]
[335523478,1724304740828,500.0,8.964e-05,2]
[335523479,1724304744514,155.0,9.647e-05,2]
[335523481,1724304801235,500.0,8.964e-05,2]
[335523482,1724304818473,157.24,7.104e-05,2]
[335523483,1724304818691,157.24,9.844e-05,2]
[335523484,1724304840563,791.78919114,9.647e-05,2]
[335523485,1724304844752,656.8,8.219e-05,2]
[335523486,1724304849922,15650.65,9.81e-05,2]
[335523487,1724304882325,402.46,9.761e-05,2]
[335523488,1724304935562,791.78919114,9.761e-05,2]
[335523490,1724305010246,532.22,9.711e-05,2]
[335523491,1724305043576,791.78919114,9.761e-05,2]
[335523492,1724305054564,791.78919114,9.761e-05,2]
[335523494,1724305061873,12932.61505597,5e-05,14]
[335523495,1724305067066,200.08,9.665e-05,2]
[335523496,1724305133132,171.98,7.717e-05,2]
[335523497,1724305168575,791.78919114,9.665e-05,2]
[335523498,1724305174850,4584.4,9.606e-05,2]
[335523499,1724305194665,347.03,9.616e-05,2]
[335523500,1724305214279,486.14309775,9.354e-05,2]
[335523501,1724305223542,169.2,9.617e-05,2]
[335523502,1724305272406,946.93,9.647e-05,2]
[335523503,1724305285777,156.92,6.863e-05,2]
[335523504,1724305291176,155.0,9.693e-05,2]
[335523505,1724305304670,2425.3,9.617e-05,2]
[335523506,1724305343657,310.66,9.546e-05,2]
[335523507,1724305352313,643.36,8.219e-05,2]
[335523510,1724305496658,574.22,9.449e-05,2]
[335523511,1724305548859,250.0,9.358e-05,2]
[335523513,1724305569177,26171.27753304,9.899e-05,2]
[335523514,1724305586553,202.46,9.339e-05,2]
[335523515,1724305612297,151.51,7.456e-05,2]
[335523516,1724305621226,527.24751742,9.899e-05,2]
[335523517,1724305636512,155.18066687,9.899e-05,2]
[335523518,1724305660933,547.29718905,9.899e-05,2]
[335523519,1724305668710,10543.4949088,9.861e-05,2]
[335523520,1724305720928,266.72277394,9.899e-05,2]
[335523521,1724305747429,15496.82271334,9.86e-05,2]
[335523522,1724305753724,156.92,6.666e-05,2]
[335523523,1724305753845,304.85385062,9.899e-05,2]
[335523524,1724305800757,-293.2555,9.907e-05,2]
[335523525,1724305802299,-6.7445,9.907e-05,2]
[335523526,1724305802320,-281.44721405,9.907e-05,2]
[335523527,1724305810059,155.0,9.899e-05,2]
[335523533,1724305832289,-18.55278595,9.907e-05,2]
[335523534,1724305832298,-270.44721405,9.908e-05,2]
[335523535,1724305832460,-455.55278595,9.908e-05,2]
[335523536,1724305832470,-3641.13410836,9.908e-05,2]
[335523537,1724305832480,-637.42531501,9.91e-05,2]
[335523538,1724305832489,-189.98,9.917e-05,2]
[335523539,1724305832499,-150.0,9.918e-05,2]
[335523540,1724305832508,-536.75723948,9.943e-05,2]
[335523541,1724305832517,-171.75,9.952e-05,2]
[335523542,1724305832526,-440.08291615,9.988e-05,2]
[335523543,1724305832535,-150.0,9.999e-05,2]
[335523544,1724305832545,-1500.0,9.999e-05,2]
[335523545,1724305832555,-155.0,9.999e-05,2]
[335523546,1724305832564,-2388.38652601,9.999e-05,2]
[335523547,1724305832573,-31054.0,0.0001,2]
[335523548,1724305832583,-1500.0,0.0001,2]
[335523549,1724305832592,-211.2188898,0.0001,2]
[335523550,1724305832602,-523.39091194,0.00010009,2]
[335523551,1724305832612,-531.64175909,0.00010009,2]
[335523552,1724305832622,-155.07451752,0.00010009,2]
[335523553,1724305832632,-366.4101937,0.00010009,2]
[335523554,1724305832642,-156.77109174,0.00010026,2]
[335523555,1724305832652,-527.07058742,0.00010026,2]
[335523556,1724305832662,-155.08994725,0.00010026,2]
[335523557,1724305832821,-3187.9433,0.00010134,2]
[335523558,1724305832831,-30530.2074,0.00010234,2]
[335523559,1724305832840,-337.4973,0.0001029,2]
[335523560,1724305832849,-9141.1613,0.0001029,2]
[335523561,1724305832858,-499.99,0.00010299,2]
[335523562,1724305832868,-16660.0222,0.000103,2]
[335523563,1724305832877,-214.7691,0.000103,2]
[335523564,1724305832887,-202.9138,0.000103,2]
[335523565,1724305832897,-500.0,0.000103,2]
[335523566,1724305832906,-1081.864,0.000103,2]
[335523567,1724305832915,-1000.0,0.000103,2]
[335523568,1724305832924,-32687.2892,0.000103,2]
[335523569,1724305832934,-948.5528,0.000103,2]
[335523570,1724305832943,-500.0,0.00010334,2]
[335523571,1724305832952,-207.78228054,0.00010367,2]
[335523572,1724305832962,-200.0,0.00010373,2]
[335523573,1724305832971,-13141.70842835,0.0001039,2]
[335523574,1724305832983,-6077.0,0.0001039,2]
[335523575,1724305838403,-316.86944542,9.988e-05,2]
[335523576,1724305838412,-915.16996892,0.0001039,2]
[335523577,1724305838421,-135.43994868,0.000104,2]
[335523578,1724305838487,-948245.56757122,0.000104,2]
[335523579,1724305838579,-1000.0,0.000104,2]
[335523580,1724305838595,-16084.90153251,0.000104,2]
[335523677,1724305840389,-295.37456521,9.943e-05,2]
[335523678,1724305840502,-241.38267427,9.943e-05,2]
[335523679,1724305840512,-231.89755642,0.00010355,2]
[335523680,1724305840523,-134.22173712,0.00010355,2]
[335523681,1724305840533,-1783.07826289,0.000104,2]
[335523682,1724305840722,-1487.35560269,0.000104,2]
[335523683,1724305840734,-271.37002482,0.000104,2]
[335523684,1724305840746,-875.6832297,0.000104,2]
[335523685,1724305840779,-3473.03902469,0.000104,2]
[335523750,1724305843349,-1016.1,0.000104,2]
[335523753,1724305843361,-130693.64715123,0.000104,2]
[335523758,1724305843407,-1055.90288241,0.000104,2]
[335523760,1724305843524,-47742.71442388,0.000104,2]
[335523768,1724305843865,-485.29999995,0.000104,2]
[335523770,1724305843876,-10818.38164193,0.000104,2]
[335523772,1724305843886,-643.36,0.00010455,2]
[335523774,1724305843895,-3405.55078638,0.00010471,2]
[335523776,1724305843905,-1146.25741355,0.000105,2]
[335523778,1724305843915,-156.92,0.00010502,2]
[335523780,1724305843925,-202.46,0.00010506,2]
[335523782,1724305843934,-244.72389893,0.00010565,2]
[335523784,1724305843943,-1925.0,0.000106,2]
[335523786,1724305843953,-1500.0,0.00010603,2]
[335523788,1724305843963,-574.22,0.0001063,2]
[335523789,1724305843972,-176.43925016,0.00010635,2]
[335523791,1724305843982,-795.43698202,0.00010639,2]
[335523794,1724305843993,-505.5664408,0.00010639,2]
[335523796,1724305844005,-198.99657718,0.00010639,2]
[335523798,1724305844015,-613.90368091,0.00010684,2]
[335523799,1724305844025,-504.41527586,0.00010684,2]
[335523801,1724305844034,-500.0,0.00010684,2]
[335523803,1724305844044,-500.0,0.00010684,2]
[335523805,1724305844053,-500.0,0.00010684,2]
[335523807,1724305844063,-500.0,0.00010684,2]
[335523809,1724305844072,-500.0,0.00010684,2]
[335523811,1724305844081,-500.0,0.00010684,2]
[335523813,1724305844091,-500.0,0.00010684,2]
[335523814,1724305844100,-11.08912635,0.00010684,2]
[335523817,1724305844111,-161.07087365,0.00010684,2]
[335523818,1724305844121,-155.0,0.00010699,2]
[335523820,1724305844130,-335.849,0.00010713,2]
[335523822,1724305844139,-1500.0,0.00010729,2]
[335523824,1724305844148,-150.0,0.00010733,2]
[335523826,1724305844158,-150.0,0.00010735,2]
[335523828,1724305844167,-150.0,0.00010763,2]
[335523829,1724305844176,-158.4959332,0.0001077,2]
[335523832,1724305844198,-541.68566657,0.0001077,2]
[335523845,1724305844332,-697.68583,0.0001077,2]
[335523848,1724305844343,-360.10211023,0.0001077,2]
[335523849,1724305844352,-359.92617215,0.0001077,2]
[335523851,1724305844364,-502.49912,0.0001077,2]
[335524026,1724305846286,-895.54425785,0.0001077,2]
[335524028,1724305846296,-194.33691752,0.0001077,2]
[335524031,1724305846306,-824.59977352,0.0001077,2]
[335524036,1724305846346,-59.26378896,0.0001077,2]
[335524038,1724305846355,-150.0,0.00010775,2]
[335524040,1724305846364,-2125.91662309,0.0001078,2]
[335524045,1724305846407,-7599.63402511,0.0001078,2]
[335524053,1724305846469,-2372.81520537,0.0001078,2]
[335524055,1724305846481,-1151.46518539,0.0001078,2]
[335524057,1724305846492,-1383.40857251,0.0001078,2]
[335524059,1724305846503,-1491.15000001,0.0001078,2]
[335524063,1724305846531,-430.72220257,0.0001078,2]
[335524070,1724305846594,-1151.05278595,0.0001078,2]
[335524072,1724305846603,-868.11771133,0.0001078,2]
[335524074,1724305846614,-329.20700671,0.0001078,2]
[335524076,1724305846625,-560.64483196,0.0001078,2]
[335524078,1724305846634,-150.0,0.0001079,2]
[335524080,1724305846643,-500.0,0.00010799,2]
[335524082,1724305846652,-500.0,0.00010799,2]
[335524083,1724305846662,-500.0,0.00010799,2]
[335524085,1724305846671,-252.82008493,0.00010799,2]
[335524087,1724305846682,-247.17991507,0.00010799,2]
[335524089,1724305846692,-508.96489008,0.00010799,2]
[335524091,1724305846701,-500.0,0.00010799,2]
[335524093,1724305846711,-500.0,0.00010799,2]
[335524095,1724305846720,-500.0,0.00010799,2]
[335524096,1724305846731,-150.0,0.00010805,2]
[335524098,1724305846740,-91.65027182,0.0001081,2]
[335524100,1724305846751,-1408.34972818,0.0001081,2]
[335524102,1724305846760,-150.0,0.0001081,2]
[335524104,1724305846768,-150.0,0.00010813,2]
[335524105,1724305846777,-151.54817037,0.00010833,2]
[335524107,1724305846787,-150.0,0.00010834,2]
[335524109,1724305846796,-150.0,0.00010838,2]
[335524111,1724305846805,-150.0,0.00010839,2]
[335524113,1724305846814,-150.0,0.00010843,2]
[335524115,1724305846824,-557.0,0.0001086,2]
[335524117,1724305846833,-600.2172631,0.00010873,2]
[335524119,1724305846842,-500.0,0.00010873,2]
[335524121,1724305846851,-500.0,0.00010873,2]
[335524123,1724305846861,-200.80614302,0.00010873,2]
[335524125,1724305846871,-500.0,0.00010873,2]
[335524127,1724305846880,-500.0,0.00010873,2]
[335524129,1724305846890,-200.08,0.00010873,2]
[335524131,1724305846899,-245.34712211,0.00010879,2]
[335524133,1724305846907,-502.31469118,0.00010879,2]
[335524134,1724305846916,-116810.63025424,0.0001088,2]
[335524485,1724305866781,789.6154,9.843e-05,2]
[335524487,1724305888614,288.19171405,9.899e-05,2]
[335524488,1724305897491,500.0,8.964e-05,2]
[335524489,1724305898402,500.0,8.22e-05,2]
[335524490,1724305899143,500.0,8.964e-05,2]
[335524491,1724305903630,500.0,8.964e-05,2]
[335524492,1724305928805,617.8,8.219e-05,2]
[335524493,1724306057090,151.25,9.824e-05,2]
[335524494,1724306099497,250.0,9.832e-05,2]
[335524495,1724306099729,1000.0,9.833e-05,2]
[335524496,1724306227042,156.92,7.011e-05,2]
[335524497,1724306231502,239.07177356,0.00014,120]
[335524498,1724306235887,500.0,8.22e-05,2]
[335524499,1724306257240,500.0,8.22e-05,2]
[335524500,1724306258439,500.0,8.964e-05,2]
[335524501,1724306282587,500.0,8.964e-05,2]
[335524502,1724306292418,4954.04,9.771e-05,2]
[335524503,1724306308319,4571.75,9.763e-05,2]
[335524504,1724306367015,23900.0,9.72e-05,2]
[335524505,1724306390345,620.63,9.689e-05,2]
[335524506,1724306429870,630.95,8.219e-05,2]
[335524507,1724306504805,10529.48,9.667e-05,2]
[335524508,1724306528589,26171.27753304,9.899e-05,2]
[335524509,1724306531662,169.31,9.554e-05,2]
[335524510,1724306561487,2710.64,9.479e-05,2]
[335524511,1724306562311,622.74,9.479e-05,2]
[335524512,1724306584144,200.0,9.551e-05,2]
[335524513,1724306586966,603.97,9.499e-05,2]
[335524514,1724306638923,250.0,9.445e-05,2]
[335524516,1724306698662,156.92,6.735e-05,2]
[335524517,1724306705188,186.04064742,9.888e-05,2]
[335524518,1724306705534,186.04064742,9.899e-05,2]
[335524520,1724306745158,710.51,9.119e-05,2]
[335524521,1724306746002,150.0,9.888e-05,2]
[335524524,1724306762564,150.09532222,9.888e-05,2]
[335524525,1724306764647,150.10526487,9.888e-05,2]
[335524526,1724306768097,150.0,9.888e-05,2]
[335524527,1724306768453,150.0,9.906e-05,2]
[335524530,1724306794590,150.1230002,9.888e-05,2]
[335524531,1724306796564,150.0,9.888e-05,2]
[335524532,1724306798819,150.11297417,9.888e-05,2]
[335524533,1724306800741,150.0,9.888e-05,2]
[335524534,1724306810055,150.0,9.888e-05,2]
[335524535,1724306814573,150.0,9.888e-05,2]
[335524536,1724306818388,241.85164397,9.888e-05,2]
[335524537,1724306864058,175.9,9.106e-05,2]
[335524538,1724306864163,23900.0,9.106e-05,2]
[335524539,1724306868680,580.96943342,9.899e-05,2]
[335524540,1724306892817,415.36,9.107e-05,2]
[335524541,1724306908401,618.59,8.219e-05,2]
[335524547,1724306975984,4628.96098868,9.899e-05,2]
[335524550,1724307000115,106000.10504072,9.8e-05,10]
[335524559,1724307031558,-186.04064742,9.91e-05,2]
[335524560,1724307031572,-150.0,9.913e-05,2]
[335524561,1724307031582,-1004.55969421,9.913e-05,2]
[335524562,1724307031592,-1004.55969421,9.914e-05,2]
[335524563,1724307031602,-14219.48266082,9.914e-05,2]
[335524564,1724307031613,-679.71,9.914e-05,2]
[335524565,1724307031624,-4390.21581886,9.914e-05,2]
[335524566,1724307031637,-18210.38206671,9.914e-05,2]
[335524567,1724307031648,-3649.63627015,9.914e-05,2]
[335524568,1724307031660,-279.69657276,9.914e-05,2]
[335524569,1724307031671,-662.54834617,9.914e-05,2]
[335524570,1724307031690,-711.6,9.914e-05,2]
[335524571,1724307031700,-660.11908788,9.914e-05,2]
[335524572,1724307031711,-342.875451,9.914e-05,2]
[335524573,1724307031723,-486.5055,9.914e-05,2]
[335524574,1724307031735,-818.82444517,9.914e-05,2]
[335524575,1724307031747,-757.13168339,9.914e-05,2]
[335524576,1724307031759,-4131.27209709,9.914e-05,2]
[335524577,1724307031769,-150.0,9.914e-05,2]
[335524578,1724307031778,-685.37604976,9.914e-05,2]
[335524579,1724307031798,-319.18364445,9.914e-05,2]
[335524580,1724307031807,-288.87241155,9.914e-05,2]
[335524592,1724307037417,155.4,9.906e-05,2]
[335524593,1724307037486,-1759.35095463,9.914e-05,2]
[335524594,1724307037495,-186.04064742,9.921e-05,2]
[335524595,1724307037504,-150.0,9.924e-05,2]
[335524596,1724307037514,-210.24889066,9.926e-05,2]
[335524597,1724307037523,-293.25,9.926e-05,2]
[335524598,1724307037532,-499.99,9.929e-05,2]
[335524599,1724307037541,-273.34937185,9.929e-05,2]
[335524600,1724307037551,-173.00271827,9.932e-05,2]
[335524601,1724307037583,840.0,9.127e-05,2]
[335524602,1724307037647,-13.03792915,9.932e-05,2]
[335524603,1724307037659,-300.0,9.939e-05,2]
[335524604,1724307037668,-1692.20372719,9.94e-05,2]
[335524605,1724307037679,-3175.30859276,9.94e-05,2]
[335524606,1724307037689,-150.0,9.94e-05,2]
[335524607,1724307037698,-150.0,9.942e-05,2]
[335524608,1724307037707,-186.04064742,9.943e-05,2]
[335524609,1724307037716,-186.04064742,9.954e-05,2]
[335524610,1724307037726,-150.0,9.96e-05,2]
[335524611,1724307037735,-186.04064742,9.965e-05,2]
[335524612,1724307037745,-150.0,9.966e-05,2]
[335524613,1724307037754,-150.0,9.972e-05,2]
[335524614,1724307037763,-186.04064742,9.976e-05,2]
[335524615,1724307037772,-150.0,9.978e-05,2]
[335524616,1724307037782,-186.04064742,9.988e-05,2]
[335524617,1724307037791,-2794.94,9.988e-05,2]
[335524618,1724307037800,-150.0,9.992e-05,2]
[335524619,1724307037810,-150.0,9.996e-05,2]
[335524620,1724307037819,-186.04064742,9.999e-05,2]
[335524622,1724307037829,-547.29718905,9.999e-05,2]
[335524623,1724307037839,-348.26413265,9.999e-05,2]
[335524624,1724307037848,-1050.0,0.0001,2]
[335524625,1724307037858,-200.0,0.0001,3]
[335524627,1724307037868,-266.72277394,0.00010009,2]
[335524629,1724307037878,-3405.55078638,0.00010009,2]
[335524631,1724307037887,-204.33877496,0.00010009,2]
[335524633,1724307037897,-522.89157355,0.00010009,2]
[335524635,1724307037907,-2388.38652601,0.00010009,2]
[335524637,1724307037916,-186.04064742,0.0001001,2]
[335524639,1724307037925,-150.0,0.00010014,2]
[335524641,1724307037935,-150.0,0.00010018,2]
[335524643,1724307037944,-186.04064742,0.00010021,2]
[335524644,1724307037954,-211.2188898,0.00010026,2]
[335524646,1724307037963,-150.0,0.00010032,2]
[335524648,1724307037973,-186.04064742,0.00010032,2]
[335524650,1724307037983,-186.04064742,0.00010043,2]
[335524652,1724307037994,-150.0,0.00010045,2]
[335524654,1724307038003,-150.0,0.0001005,2]
[335524656,1724307038012,-186.04064742,0.00010054,2]
[335524658,1724307038022,-150.0,0.00010057,2]
[335524660,1724307038031,-186.04064742,0.00010065,2]
[335524662,1724307038040,-150.0,0.00010068,2]
[335524664,1724307038049,-150.0,0.00010071,2]
[335524665,1724307038058,-186.04064742,0.00010076,2]
[335524667,1724307038067,-150.0,0.00010086,2]
[335524669,1724307038077,-186.04064742,0.00010087,2]
[335524671,1724307038087,-150.0,0.00010097,2]
[335524673,1724307038096,-531.64175909,0.00010097,2]
[335524675,1724307038106,-186.04064742,0.00010099,2]
[335524677,1724307038115,-500.0,0.000101,3]
[335524679,1724307038124,-150.0,0.00010104,2]
[335524680,1724307038133,-186.04064742,0.0001011,2]
[335524682,1724307038142,-186.04064742,0.00010121,2]
[335524684,1724307038152,-150.0,0.00010122,2]
[335524686,1724307038161,-150.0,0.00010123,2]
[335524688,1724307038170,-186.04064742,0.00010132,2]
[335524690,1724307038179,-150.0,0.0001014,2]
[335524692,1724307038188,-150.0,0.00010141,2]
[335524694,1724307038197,-186.04064742,0.00010143,2]
[335524695,1724307038207,-150.0,0.00010149,2]
[335524697,1724307038216,-186.04064742,0.00010154,2]
[335524699,1724307038225,-150.0,0.00010158,2]
[335524701,1724307038234,-150.0,0.00010162,2]
[335524703,1724307038244,-186.04064742,0.00010165,2]
[335524705,1724307038254,-150.0,0.00010175,2]
[335524707,1724307038263,-150.0,0.00010176,2]
[335524709,1724307038273,-186.04064742,0.00010176,2]
[335524724,1724307038419,-186.04064742,0.00010187,2]
[335524726,1724307038429,-1008.65,0.00010192,2]
[335524728,1724307038439,-150.0,0.00010194,2]
[335524730,1724307038448,-186.04064742,0.00010198,2]
[335524732,1724307038459,-337.0,0.000102,5]
[335524734,1724307038469,-272.8767,0.000102,2]
[335524736,1724307038478,-8939.8851,0.000102,2]
[335524738,1724307038487,-365.0822,0.000102,2]
[335524740,1724307038497,-500.0,0.000102,2]
[335524742,1724307038506,-1035.0902,0.000102,2]
[335524743,1724307038515,-893.1778,0.000102,2]
[335524745,1724307038525,-4870.9752,0.000102,2]
[335524747,1724307038534,-2109.1279,0.000102,2]
[335524749,1724307038543,-700.0,0.000102,3]
[335524751,1724307038553,-176.7717,0.000102,2]
[335524753,1724307038565,-150.0,0.00010202,2]
[335524755,1724307038575,-186.04064742,0.00010209,2]
[335524757,1724307038584,-150.0,0.00010212,2]
[335524759,1724307038593,-186.04064742,0.00010221,2]
[335524761,1724307038603,-150.0,0.00010226,2]
[335524763,1724307038613,-150.0,0.00010228,2]
[335524765,1724307038622,-150.0,0.0001023,2]
[335524767,1724307038632,-186.04064742,0.00010232,2]
[335524769,1724307038641,-186.04064742,0.00010243,2]
[335524770,1724307038651,-150.0,0.00010248,2]
[335524772,1724307038660,-186.04064742,0.00010254,2]
[335524774,1724307038669,-150.0,0.00010254,2]
[335524776,1724307038679,-150.0,0.00010254,2]
[335524778,1724307038690,-186.04064742,0.00010265,2]
[335524780,1724307038699,-150.0,0.00010266,2]
[335524782,1724307038709,-186.04064742,0.00010276,2]
[335524784,1724307038719,-150.0,0.0001028,2]
[335524786,1724307038728,-150.0,0.00010284,2]
[335524788,1724307038738,-186.04064742,0.00010287,2]
[335524790,1724307038748,-186.04064742,0.00010298,2]
[335524792,1724307038757,-10930.0954,0.000103,2]
[335524794,1724307038766,-3047.3481,0.000103,2]
[335524796,1724307038776,-159064.6264,0.000103,2]
[335524798,1724307038785,-1000.0,0.000103,3]
[335524800,1724307038794,-200.0,0.000103,2]
[335524802,1724307038804,-150.0,0.00010302,2]
[335524804,1724307038813,-150.0,0.00010306,2]
[335524806,1724307038822,-186.04064742,0.00010309,2]
[335524807,1724307038832,-150.0,0.0001031,2]
[335524809,1724307038841,-150.0,0.0001032,2]
[335524811,1724307038851,-186.04064742,0.0001032,2]
[335524813,1724307038861,-186.04064742,0.00010332,2]
[335524815,1724307038871,-150.0,0.00010332,2]
[335524817,1724307038880,-500.0,0.00010334,2]
[335524819,1724307038889,-500.0,0.00010334,2]